Workbook

Sheet 100%
G1: RELATÓRIO DE PARADAS E INTERRUPÇÕES | S1: Laminador - 100%
A2: 24 | B2: INTER. MECÂNICA | E2: INTER. ELÉTRICA | H2: INTER. OPERAÇÃO | K2: INTER. SET UP | N2: INTER. OUTROS | P2: TOTAL INTER. | R2: PARADAS | S2: 23/03/2016 a 24/03/2016
A3: h | B3: =SUMIF($H:$H,200,$D:$D)+SUMIF($H:$H,240,$D:$D)+SUMIF($H:$H,260,$D:$D) -> 0.05978009259 | E3: =SUMIF($H:$H,300,$D:$D)+SUMIF($H:$H,360,$D:$D)+SUMIF($H:$H,380,$D:$D) -> 0.01322916667 | I3: =SUMIF($H:$H,700,$D:$D)+SUMIF($H:$H,800,$D:$D) -> 0.06896990741 | K3: =SUMIF($F:$F,3,$D:$D) -> 0.00869212963 | N3: =P3-B3-E3-I3-K3+1/24/60/60/100 -> 0.01553252315 | P3: =SUMIF($F:$F,"002",$D:$D)+SUMIF($F:$F,"003",$D:$D) -> 0.1662037037 | R3: =24*SUMIF($F:$F,"001",$D:$D) -> 11.87416667 | S3: RESPONSÁVEL
A4: % | B4: =100*24*B3/($A$2-$R$3) -> 11.8319474 | E4: =100*24*E3/($A$2-$R$3) -> 2.618376744 | I4: =100*24*I3/($A$2-$R$3) -> 13.65083728 | K4: =100*24*K3/($A$2-$R$3) -> 1.72038577 | N4: =100*24*N3/($A$2-$R$3) -> 3.074267519 | P4: =100*24*P3/($A$2-$R$3) -> 32.89579181
A5: Data | B5: Início | C5: Fim | D5: Duração | E5: Turno | F5: Causa da Interrupção | L5: Local de Instalação | S5: Observação | T5: Ordem de serviço
F6: Cód. | G6: Tipo | H6: Cód. | I6: Motivo | J6: Cód. | K6: Defeito | L6: Área | M6: Cód. | N6: Equipamento | O6: Cód. | P6: Conjunto | Q6: Cód. | R6: Subconjunto
A7: 23/03/16 | B7: 00:00:00 | C7: 08:00:00 | D7: =IF(C7="","",IF(C7=0,"24:00:00",C7)-B7) -> 0.3333333333 | E7: =IF(B7="","",TRUNC(24*B7/8+1)) -> 1 | F7: 1 | G7: PARADA PROGRAMADA | H7: 100 | I7: PROGRAMADA | J7: 118 | K7: TURNO NAO ESCALADO | L7: LAU
A8: 23/03/16 | B8: 08:00:00 | C8: 08:10:11 | D8: =IF(C8="","",IF(C8=0,"24:00:00",C8)-B8) -> 0.007071759259 | E8: =IF(B8="","",TRUNC(24*B8/8+1)) -> 2 | F8: 1 | G8: PARADA PROGRAMADA | H8: 100 | I8: PROGRAMADA | J8: 124 | K8: RETOMADA DE PRODUCAO | L8: LAU | S8: RETOMADA DE PRODUÇÃO.
A9: 23/03/16 | B9: 08:20:17 | C9: 08:24:33 | D9: 0.002962962963 | E9: 2 | F9: 2 | G9: PARADA NAO PROGRAMADA | H9: 800 | I9: INTERRUPCAO DE PRODUCAO | L9: LAU | M9: 40 | N9: LAMINADOR DE LUPAS 3 | O9: 450 | P9: LAMINADOR 3 - MAQUINA | S9: RETIRAR EXCESSO DE PEÇAS NA ENTRADA DO REELER 2 COM REELER 1 TROCANDO GUIA.
A10: 23/03/16 | B10: 08:58:07 | C10: 09:02:38 | D10: 0.003136574074 | E10: 2 | F10: 3 | G10: PARADA PARA PREPARACAO | H10: 904 | I10: TROCA DE PAREDE | J10: 001 | K10: PONTA/MANDRIL (3min) | L10: LAU | M10: 30 | N10: LAMINADOR DE BLOCOS SWW | O10: 240 | P10: LAMINADOR SWW - MAQUINA | S10: TROCA DE PAREDE.
A11: 23/03/16 | B11: 09:03:38 | C11: 09:07:45 | D11: 0.002858796296 | E11: 2 | F11: 3 | G11: PARADA PARA PREPARACAO | H11: 904 | I11: TROCA DE PAREDE | J11: 006 | K11: CONTROLANDO 1a PEÇA IMS (3 min) | L11: LAU | M11: 40 | N11: LAMINADOR DE LUPAS 3 | O11: 450 | P11: LAMINADOR 3 - MAQUINA | S11: AGUARDANDO A PRIMEIRA PEÇA PASSAR NO IMS.
A12: 23/03/16 | B12: 09:24:50 | C12: 09:49:38 | D12: 0.01722222222 | E12: 2 | F12: 2 | G12: PARADA NAO PROGRAMADA | H12: 700 | I12: TROCA DE FERRAMENTA/EQUIPAMENTO (QUEBRA) | J12: 717 | K12: TROCA DE MANDRIL | L12: LAU | M12: 40 | N12: LAMINADOR DE LUPAS 3 | O12: 450 | P12: LAMINADOR 3 - MAQUINA | S12: RETIRAR PEÇA NA ENTRADA DO LAMINADOR 3 APÓS QUEBRA DO MANDRIL DE 2º PASSE SEM CAUSA APARENTE.
A13: 23/03/16 | B13: 10:30:24 | C13: 11:40:49 | D13: 0.04890046296 | E13: 2 | F13: 1 | G13: PARADA PROGRAMADA | H13: 100 | I13: PROGRAMADA | J13: 123 | K13: PARADA PROGRAMADA | L13: LAU | S13: PARADA PROGRAMA PARA ALMOÇO.
A14: 23/03/16 | B14: 11:41:44 | C14: 12:00:47 | D14: 0.01322916667 | E14: 2 | F14: 2 | G14: PARADA NAO PROGRAMADA | H14: 300 | I14: ELETRICA | J14: 339 | K14: SOBRECARGA | L14: LAU | M14: 30 | N14: LAMINADOR DE BLOCOS SWW | O14: 220 | P14: LAMINADOR SWW - ENTRADA | Q14: 390 | R14: EMPURRADOR DE BLOCOS | S14: DESARME DO DISJUNTOR DE ALIMENTAÇÃO DO INVERSOR DO EMPURADOR DE BLOCOS. | T14: 104676636
A15: 23/03/16 | B15: 12:01:42 | C15: 12:24:04 | D15: 0.01553240741 | E15: 2 | F15: 2 | G15: PARADA NAO PROGRAMADA | H15: 500 | I15: FALTA DE MATERIAL/FERRAMENTA/EQUIPAMENTO | J15: 519 | K15: FALTA DE MANDRIL | L15: LAU | M15: 40 | N15: LAMINADOR DE LUPAS 3 | O15: 450 | P15: LAMINADOR 3 - MAQUINA | S15: AGUARDANDO A CHEGADA DE MANDRIL Ø311 PARA LAMINAR MATERIAL 323.9X6.40.
A16: 23/03/16 | B16: 12:39:29 | C16: 12:43:45 | D16: 0.002962962963 | E16: 2 | F16: 2 | G16: PARADA NAO PROGRAMADA | H16: 800 | I16: INTERRUPCAO DE PRODUCAO | J16: 897 | K16: QUALIDADE | L16: LAU | M16: 40 | N16: LAMINADOR DE LUPAS 3 | O16: 450 | P16: LAMINADOR 3 - MAQUINA | S16: CONFERIR E REALIZAR NOVAS REGULAGENS NOS REELERES 1 E 2 PARA MELHORA A QUALIDADE INTERNA DO MATERIAL.
A17: 23/03/16 | B17: 12:45:27 | C17: 12:53:45 | D17: 0.005763888889 | E17: 2 | F17: 2 | G17: PARADA NAO PROGRAMADA | H17: 800 | I17: INTERRUPCAO DE PRODUCAO | J17: 897 | K17: QUALIDADE | L17: LAU | M17: 65 | N17: LEITO DE RESFRIAMENTO 1 | O17: 200 | P17: LEITO DE RESFRIAMENTO 1 - MESA | S17: CONFERIR A QUALIDADE DO MATERIAL APÓS AJUSTES NOS REELERES.
A18: 23/03/16 | B18: 13:10:01 | C18: 13:51:12 | D18: 0.02859953704 | E18: 2 | F18: 1 | G18: PARADA PROGRAMADA | H18: 100 | I18: PROGRAMADA | L18: LAU | M18: 20 | N18: FORNO DE VIGAS MOVEIS - ITALIMPIANTI | S18: PREPARAÇÃO PARA LAMINAR GARRAFA.
A19: 23/03/16 | B19: 13:52:17 | C19: 13:56:10 | D19: 0.002696759259 | E19: 2 | F19: 3 | G19: PARADA PARA PREPARACAO | H19: 904 | I19: TROCA DE PAREDE | J19: 006 | K19: CONTROLANDO 1a PEÇA IMS (3 min) | L19: LAU | M19: 40 | N19: LAMINADOR DE LUPAS 3 | O19: 450 | P19: LAMINADOR 3 - MAQUINA | S19: CONTROLANDO A 1º PEÇA APÓS PREPARAÇÃO DA LINHA PARA LAMINAR GARRAFA.
A20: 23/03/16 | B20: 14:34:30 | C20: 14:50:08 | D20: 0.01085648148 | E20: 2 | F20: 2 | G20: PARADA NAO PROGRAMADA | H20: 200 | I20: MECANICA | J20: 297 | K20: QUALIDADE | L20: LAU | M20: 93 | N20: LEITO DE RESFRIAMENTO 3 | O20: 200 | P20: LEITO DE RESFRIAMENTO 3 - MESA | Q20: 10 | R20: ESTRUTURA DO LEITO DE RESFRIAMENTO 3 | S20: ESMIRILHAR TRILOS NA SAIDA DO LEITO 3.MARCANDO O MATERIAL. | T20: 104676734
A21: 23/03/16 | B21: 14:50:08 | C21: 15:01:08 | D21: 0.007638888889 | E21: 2 | F21: 2 | G21: PARADA NAO PROGRAMADA | H21: 800 | I21: INTERRUPCAO DE PRODUCAO | J21: 897 | K21: QUALIDADE | L21: LAU | M21: 30 | N21: LAMINADOR DE BLOCOS SWW | O21: 240 | P21: LAMINADOR SWW - MAQUINA | S21: ESMIRILHAR GUIA DE LAMINAÇÃO DO SWW PARA ELININAR DEFEITO EXTERNO NO MATERIAL.
A22: 23/03/16 | B22: 15:15:41 | C22: 15:21:47 | D22: 0.004236111111 | E22: 2 | F22: 2 | G22: PARADA NAO PROGRAMADA | H22: 200 | I22: MECANICA | J22: 202 | K22: AGARRAMENTO | L22: LAU | M22: 70 | N22: FORNO NASSHEUER | O22: 745 | P22: FORNO NASSHEUER - MAQUINA | Q22: 445 | R22: SOLEIRA DO FORNO NASSHEUER - ESTRUTURA | S22: REALIZAR OPERAÇÃO EM MANUAL APÓS PEÇA NÃO ROLAR NA RAMPA DE SAIDA DO FORNO. | T22: 104677638
A23: 23/03/16 | B23: 16:30:34 | C23: 17:34:55 | D23: 0.0446875 | E23: 3 | F23: 2 | G23: PARADA NAO PROGRAMADA | H23: 200 | I23: MECANICA | J23: 218 | K23: QUEBRA | L23: LAA | M23: 50 | N23: CHANFRAGEM DE PONTAS - ZIKELLI | O23: 220 | P23: CHANFRADEIRA ZIKELLI 2 | Q23: 220 | R23: PLACA PARA TUBOS | S23: PARADA OCORRIDA NO TURNO 2 DEVIDO A QUEBRA DO COPIADOR DA ZIQUELE 2 (35 MINUTOS GASTOS PARA MANUTENÇÃO +30 MINUTOS PARA REGULAGEM DO MESMO | T23: 104676907
A24: 23/03/16 | B24: 18:31:17 | C24: 19:50:14 | D24: 0.05482638889 | E24: 3 | F24: 1 | G24: PARADA PROGRAMADA | H24: 100 | I24: PROGRAMADA | J24: 123 | K24: PARADA PROGRAMADA | L24: LAU | S24: PARADA PARA REFEIÇÃO
A25: 23/03/16 | B25: 19:51:19 | C25: 19:55:29 | D25: 0.002893518519 | E25: 3 | F25: 2 | G25: PARADA NAO PROGRAMADA | H25: 800 | I25: INTERRUPCAO DE PRODUCAO | J25: 897 | K25: QUALIDADE | L25: LAU | M25: 45 | N25: LAMINADOR ALISADOR - REELER I | O25: 30 | P25: LAMINADOR ALISADOR REELER I - MAQUINA | S25: FAZER AJUSTE NO REELER 1 DEVIDO MÁ QUALIDADE E EXCESSO NO REELER 2
A26: 23/03/16 | B26: 20:21:40 | C26: 20:25:36 | D26: 0.002731481481 | E26: 3 | F26: 2 | G26: PARADA NAO PROGRAMADA | H26: 800 | I26: INTERRUPCAO DE PRODUCAO | J26: 897 | K26: QUALIDADE | L26: LAU | M26: 45 | N26: LAMINADOR ALISADOR - REELER I | O26: 30 | P26: LAMINADOR ALISADOR REELER I - MAQUINA | S26: FAZER AJUSTE NO REELER 1 DEVIDO MÁ QUALIDADE E EXCESSO NO REELER 2
A27: 23/03/16 | B27: 21:23:48 | C27: 21:27:27 | D27: 0.002534722222 | E27: 3 | F27: 2 | G27: PARADA NAO PROGRAMADA | H27: 800 | I27: INTERRUPCAO DE PRODUCAO | L27: LAU | M27: 40 | N27: LAMINADOR DE LUPAS 3 | O27: 450 | P27: LAMINADOR 3 - MAQUINA | S27: CONFERIR TIRANTE DO LAMINADOR 3 E PASSAR GRAXA NA CHAVETA DEVIDO VARIAÇÃO DE COMPRIMENTO
A28: 23/03/16 | B28: 22:19:12 | C28: 22:30:35 | D28: =IF(C28="","",IF(C28=0,"24:00:00",C28)-B28) -> 0.007905092593 | E28: =IF(B28="","",TRUNC(24*B28/8+1)) -> 3 | F28: 2 | G28: PARADA NAO PROGRAMADA | H28: 800 | I28: INTERRUPCAO DE PRODUCAO | L28: LAU | M28: 70 | N28: FORNO NASSHEUER | O28: 745 | P28: FORNO NASSHEUER - MAQUINA | Q28: 650 | R28: PORTA DE SAIDA - ESTRUTURA | S28: FAZER OPERAÇÃO EM MANUAL NA SAIDA DO FORNO NASSHEUER DEVIDO PEÇAS EMPENADAS COM SUSPEITA DE QUEDA DE NA COMPORTA DE SAIDA E EXC.NO REELER
A29: 23/03/16 | B29: 22:41:36 | C29: 22:57:18 | D29: =IF(C29="","",IF(C29=0,"24:00:00",C29)-B29) -> 0.01090277778 | E29: =IF(B29="","",TRUNC(24*B29/8+1)) -> 3 | F29: 2 | G29: PARADA NAO PROGRAMADA | H29: 800 | I29: INTERRUPCAO DE PRODUCAO | J29: 897 | K29: QUALIDADE | L29: LAA | M29: 30 | N29: BANCAS DE CONTROLE | O29: 220 | P29: BANCA DE INSPECAO Nº1 | S29: RECUPERAR MATERIAL NA BANCA 1 COM ALTO INDICE DE INDICAÇÃO DE DEFEITO INTERNO 323.8 X 6.40 GRB
A30: 23/03/16 | B30: 23:00:27 | C30: 23:08:18 | D30: 0.005451388889 | E30: 3 | F30: 2 | G30: PARADA NAO PROGRAMADA | H30: 800 | I30: INTERRUPCAO DE PRODUCAO | J30: 897 | K30: QUALIDADE | L30: LAA | M30: 30 | N30: BANCAS DE CONTROLE | O30: 220 | P30: BANCA DE INSPECAO Nº1 | S30: RECUPERAR MATERIAL NA BANCA 1 COM ALTO INDICE DE INDICAÇÃO DE DEFEITO INTERNO 323.8 X 6.40 GRB
A31: 23/03/16 | B31: 23:16:03 | C31: 23:42:47 | D31: 0.01856481481 | E31: 3 | F31: 1 | G31: PARADA PROGRAMADA | H31: 100 | I31: PROGRAMADA | J31: 118 | K31: TURNO NAO ESCALADO | L31: LAU | S31: ENCERRAMENTO DE PRODUÇÃO
A32: 23/03/16 | B32: 23:52:32 | C32: 23:57:31 | D32: 0.003460648148 | E32: 3 | F32: 1 | G32: PARADA PROGRAMADA | H32: 100 | I32: PROGRAMADA | J32: 118 | K32: TURNO NAO ESCALADO | L32: LAA | M32: 30 | N32: BANCAS DE CONTROLE | O32: 220 | P32: BANCA DE INSPECAO Nº1 | S32: ENCERRAMENTO DE PRODUÇÃO

Sheet 50%
G1: RELATÓRIO DE PARADAS E INTERRUPÇÕES | S1: Laminador - 50%
A2: 24 | B2: INTER. MECÂNICA | E2: INTER. ELÉTRICA | H2: INTER. OPERAÇÃO | K2: INTER. SET UP | N2: INTER. OUTROS | P2: TOTAL INTER. | R2: PARADAS | S2: 23/03/2016 a 24/03/2016
A3: h | B3: =SUMIF($H:$H,200,$D:$D)+SUMIF($H:$H,240,$D:$D)+SUMIF($H:$H,260,$D:$D) -> 0 | E3: =SUMIF($H:$H,300,$D:$D)+SUMIF($H:$H,360,$D:$D)+SUMIF($H:$H,380,$D:$D) -> 0 | I3: =SUMIF($H:$H,700,$D:$D)+SUMIF($H:$H,800,$D:$D) -> 0.007164351852 | K3: =SUMIF($H:$H,900,$D:$D) -> 0 | N3: =P3-B3-E3-I3-K3+1/24/60/60/100 -> 1.157407407e-07 | P3: =SUMIF($F:$F,"002",$D:$D)+SUMIF($F:$F,"003",$D:$D) -> 0.007164351852 | R3: =SUMIF($F:$F,"001",$D:$D) -> 0 | S3: RESPONSÁVEL
A4: % | B4: =100*24*B3/($A$2-$R$3) -> 0 | E4: =100*24*E3/($A$2-$R$3) -> 0 | I4: =100*24*I3/($A$2-$R$3) -> 0.7164351852 | K4: =100*24*K3/($A$2-$R$3) -> 0 | N4: =100*24*N3/($A$2-$R$3) -> 1.157407407e-05 | P4: =100*24*P3/($A$2-$R$3) -> 0.7164351852
A5: Data | B5: Início | C5: Fim | D5: Duração | E5: Turno | F5: Causa da Interrupção | L5: Local de Instalação | S5: Observação | T5: Ordem de serviço
F6: Cód. | G6: Tipo | H6: Cód. | I6: Motivo | J6: Cód. | K6: Defeito | L6: Área | M6: Cód. | N6: Equipamento | O6: Cód. | P6: Conjunto | Q6: Cód. | R6: Subconjunto
A7: 23/03/16 | B7: 08:29:20 | C7: 08:34:14 | D7: =IF(C7="","",IF(C7=0,"24:00:00",C7)-B7) -> 0.003402777778 | E7: =IF(B7="","",TRUNC(24*B7/8+1)) -> 2 | F7: 2 | G7: PARADA NAO PROGRAMADA | H7: 800 | I7: INTERRUPCAO DE PRODUCAO | J7: 897 | K7: QUALIDADE | L7: LAU | M7: 45 | N7: LAMINADOR ALISADOR - REELER I | O7: 30 | P7: LAMINADOR ALISADOR REELER I - MAQUINA | S7: TROCA DE GUIA.
A8: 23/03/16 | B8: 20:25:36 | C8: 20:31:01 | D8: =IF(C8="","",IF(C8=0,"24:00:00",C8)-B8) -> 0.003761574074 | E8: =IF(B8="","",TRUNC(24*B8/8+1)) -> 3 | F8: 2 | G8: PARADA NAO PROGRAMADA | H8: 800 | I8: INTERRUPCAO DE PRODUCAO | J8: 897 | K8: QUALIDADE | L8: LAU | M8: 45 | N8: LAMINADOR ALISADOR - REELER I | O8: 30 | P8: LAMINADOR ALISADOR REELER I - MAQUINA | S8: FAZER AJUSTE NO REELER 1 DEVIDO MÁ QUALIDADE

Sheet Resumo
